Workbook

Sheet Sheet1
C1: EXCLUSIVE OFFERING - TWELVE STONES REALTY
A2: 233 Sand Ln, Staten Island, NY 10305
A3: FLOORS | C3: UNIT MIX | D3: BREAKDOWN | E3: PROJECTED RENTS | F3: PROJECTED (+1 A &B)
A4: #1 (+full basement) | C4: Commercial | D4: $30/psqf | E4: =sum(1765*30/12) -> 4412.5 | F4: =sum(800*30/12) -> 2000
A5: 1st floor | C5: 2 CLASS A* | F5: 7200
A6: #2 | C6: 8 SRO | D6: VACANT SRO (CLASS "B") | E6: =sum(1985*8) -> 15880 | F6: =sum(1985*9) -> 17865
A7: #3 | C7: 10 SRO | D7: VACANT SRO (CLASS "B") | E7: =sum(1985*10) -> 19850 | F7: 19850
A8: garage | E8: 2500 | F8: 2500
D9: Gross Monthly | E9: =sum(E4:E8) -> 42642.5 | F9: 49415
A10: Building Information | D10: Gross Income
A12: Block & Lot | C12: 3110-34
A13: Lot size | C13: 40 x 100 | D13: Adjusted Gross Income | E13: =sum(E9*12) -> 511710 | F13: 592980
A14: Building | C14: 30 x 63 | D14: Expenses
A15: Zoning | C15: R3-1 | D15: Property Tax - Class 1 | E15: 10862 | F15: 10862
A16: Year Built | C16: 1931 | D16: Insurance Cost | E16: 15000 | F16: 15000
A17: square footage | C17: 5130 | D17: Water/Sewer | E17: 8000 | F17: 8000
D18: Electric (SOLAR)(NEW) | E18: 2400 | F18: 2400
A19: block | C19: 3110 | D19: Fuel (Gas) (heat) | E19: 5000 | F19: 5000
A20: lots | C20: (37 -25 ft) (34- 40 ft) (33- 20 ft) | D20: 5% Maint. | E20: =IFERROR(__xludf.DUMMYFUNCTION("E24*(VALUE(REGEXREPLACE(D20,""[^[:digit:]]"", """"))/100)"),25585.5) -> 25585.5 | F20: 26689
A22: PRICE PER DOOR (18+1) | C22: =SUM(E27/19) -> 86842.10526 | D22: Total | E22: =sum(E15:E21) -> 66847.5 | F22: =sum(F15:F20) -> 67951
A23: RENT MULTIPLE | C23: =SUM(E27/E13) -> 3.224482617 | D23: Summary
D24: Gross Income | E24: =E9*12 -> 511710 | F24: 592980
A25: NOTES | D25: Gross Expenses | E25: =sum(E22) -> 66847.5 | F25: 67951
A26: 3 seperate lots | D26: NOI | E26: =sum(E13-E22) -> 444862.5 | F26: 525029
A27: FULLY VACANT | D27: Price | E27: 1650000 | F27: 1650000
A28: VERY LOW TAXES | D28: CAP X | E28: 300000 | F28: 300000
A29: Basement has 10 foot clearance | D29: ALL IN | E29: =sum(E27:E28) -> 1950000 | F29: 1950000
D30: Cap Rate (post CAP-X) | E30: =sum(E26/E29) -> 0.2281346154 | F30: 0.269245641
A32: LINK TO MEDIA AND PICTURES

Sheet Sheet2
A3: 45 Avon Pl, Staten Island, NY 10301 | B3: 18 | C3: 2800000 | D3: 55898 | E3: =sum(C3/B3) -> 155555.5556 | F3: stabilized
A4: 85 Ann St, Staten Island, NY 10302 | B4: 16 | C4: 2250000 | D4: 69603 | E4: 140625 | F4: stabilized
A5: 118 Great Kills Rd, Staten Island, NY 10308 | B5: 8 | C5: 1625000 | D5: 25844 | E5: 203125
A6: 30 Narrows Rd S, Staten Island, NY 10305 | B6: 14 | C6: 2100000 | D6: 62447 | E6: 150000 | F6: stabilized
A7: 166 Hylan Blvd, Staten Island, NY 10305 | B7: 4 | C7: 1425000 | D7: 7516 | E7: 356250
A8: 194 Seaview Ave, Staten Island, NY 10305 | B8: 15 | C8: 3050000 | D8: 39640 | E8: 203333.3333
A9: 742 Willowbrook Rd, Staten Island, NY 10314 | B9: 5 | C9: 1300000 | D9: 29051 | E9: 260000
A10: 12 Mallory Ave, Staten Island, NY 10305 | B10: 8 | C10: 1700000 | D10: 35000 | E10: 212500

Sheet Sheet3 (hidden)
C1: EXCLUSIVE OFFERING - TWELVE STONES REALTY
A2: 233 Sand Ln, Staten Island, NY 10305
A3: FLOORS | C3: UNIT MIX | D3: BREAKDOWN | E3: PROJECTED RENTS | F3: PROJECTED (+1 A &B)
A4: #1 (+full basement) | C4: Commercial | D4: $30/psqf | E4: =sum(1765*30/12) -> 4412.5 | F4: =sum(800*30/12) -> 2000
A5: 1st floor | C5: 2 CLASS A* | F5: 6650
A6: #2 | C6: 8 SRO | D6: VACANT SRO (CLASS "B") | E6: =sum(1985*8) -> 15880 | F6: =sum(1967*9) -> 17703
A7: #3 | C7: 10 SRO | D7: VACANT SRO (CLASS "B") | E7: =sum(1985*10) -> 19850 | F7: 19850
F8: 4000 | G8: BASEMENT
D9: Gross Monthly | E9: =sum(E4:E7) -> 40142.5 | F9: =sum(F4:F8) -> 50203
A10: Building Information | D10: Gross Income
A12: Block & Lot | C12: 3110-34
A13: Lot size | C13: 40 x 100 | D13: Adjusted Gross Income | E13: =sum(E9*12) -> 481710 | F13: 602436
A14: Building | C14: 30 x 63 | D14: Expenses
A15: Zoning | C15: R3-1 | D15: Property Tax - Class 1 | E15: 10862 | F15: 10862
A16: Year Built | C16: 1931 | D16: Insurance Cost | E16: 18000 | F16: 18000
A17: square footage | C17: 5130 | D17: Water/Sewer | E17: 8000 | F17: 8000
D18: Electric (SOLAR)(NEW) | E18: 2400 | F18: 2400
A19: block | C19: 3110 | D19: Fuel (Gas) (heat) | E19: 5000 | F19: 5000
A20: lots | C20: (34- 40 ft) (33- 20 ft) | D20: 5% Maint. | E20: =IFERROR(__xludf.DUMMYFUNCTION("E24*(VALUE(REGEXREPLACE(D20,""[^[:digit:]]"", """"))/100)"),24085.5) -> 24085.5 | F20: 26689
A22: PRICE PER DOOR (18+1) | C22: =SUM(E27/19) -> 81578.94737 | D22: Total | E22: =sum(E15:E21) -> 68347.5 | F22: =sum(F15:F20) -> 70951
A23: RENT MULTIPLE | C23: =SUM(E27/E13) -> 3.217703598 | D23: Summary
D24: Gross Income | E24: =E9*12 -> 481710 | F24: 602436
A25: NOTES | D25: Gross Expenses | E25: =sum(E22) -> 68347.5 | F25: 70951
A26: Basement has 10 foot clearance | D26: NOI | E26: =sum(E13-E22) -> 413362.5 | F26: 531485
A27: fully vacant | D27: Price | E27: 1550000 | F27: =sum(E27) -> 1550000
C28: TWO LOTS | D28: CAP X | E28: 300000 | F28: 300000
D29: ALL IN | E29: =sum(E27:E28) -> 1850000 | F29: 1850000
D30: Cap Rate (post CAP-X) | E30: =sum(E26/E29) -> 0.2234391892 | F30: 0.2872891892
